bitfinex/quotes_BTCUSD_20240730
["timestamp","ask_amount","ask_price","bid_price","bid_amount"]
[1722349187715,0.75198,66491.0,66490.0,0.1412]
[1722349187867,0.451188,66491.0,66490.0,0.1412]
[1722349188605,0.75198,66491.0,66490.0,0.1412]
[1722349188973,0.75298,66491.0,66490.0,0.1492]
[1722349189378,0.75198,66491.0,66490.0,0.1412]
[1722349189841,0.300792,66491.0,66485.0,0.1415]
[1722349190087,0.451249,66482.0,66481.0,0.0636]
[1722349190261,0.752092,66481.0,66480.0,0.0779]
[1722349190415,1.052929,66481.0,66480.0,0.0779]
[1722349190613,0.752092,66481.0,66480.0,0.0779]
[1722349190821,1.052929,66481.0,66480.0,0.0779]
[1722349191260,0.752092,66481.0,66480.0,0.0779]
[1722349191701,0.451255,66481.0,66480.0,0.0779]
[1722349192104,0.151418,66481.0,66480.0,0.0919]
[1722349192530,0.0025542,66481.0,66480.0,0.272471]
[1722349192753,0.001,66481.0,66480.0,0.874155]
[1722349192928,0.001,66481.0,66480.0,0.935655]
[1722349193311,0.001,66481.0,66480.0,1.236497]
[1722349194332,0.001,66481.0,66480.0,1.537339]
[1722349194538,0.001,66481.0,66480.0,1.66235923]
[1722349194736,0.001,66481.0,66480.0,1.36151723]
[1722349196074,0.001,66481.0,66480.0,1.06067523]
[1722349196280,0.001,66481.0,66480.0,1.06068103]
[1722349196485,0.001,66481.0,66480.0,0.935655]
[1722349196728,0.001,66481.0,66480.0,1.06068372]
[1722349196876,0.001,66481.0,66480.0,1.236497]
[1722349197251,0.001,66481.0,66480.0,1.36151731]
[1722349197479,0.001,66481.0,66480.0,1.37165477]
[1722349198493,0.001,66481.0,66480.0,1.24663446]
[1722349198835,0.001,66481.0,66480.0,1.37166365]
[1722349200277,0.001,66481.0,66480.0,1.24663446]
[1722349200523,0.001,66481.0,66480.0,1.71396077]
[1722349200732,0.001,66481.0,66480.0,1.17081877]
[1722349201570,0.001,66481.0,66480.0,1.47166077]
[1722349201789,0.001,66481.0,66480.0,1.17081877]
[1722349202422,0.001,66481.0,66480.0,1.48566077]
[1722349202423,0.002,66481.0,66480.0,1.48566077]
[1722349203086,0.002,66481.0,66480.0,1.18481877]
[1722349203500,0.002,66481.0,66480.0,1.05979246]
[1722349203653,0.002,66481.0,66480.0,1.18482259]
[1722349203855,0.0015542,66486.0,66485.0,1.228516]
[1722349204178,0.7836,66509.0,66504.0,0.481249]
[1722349204380,0.150354,66510.0,66506.0,0.150361]
[1722349204583,0.150356,66509.0,66506.0,0.150361]
[1722349204758,0.4872,66518.0,66504.0,0.03015]
[1722349204959,0.48,66518.0,66504.0,0.03315711]
[1722349205164,0.48,66518.0,66514.0,0.300688]
[1722349205361,0.48,66518.0,66514.0,0.180492]
[1722349205587,0.15034,66516.0,66514.0,0.03015]
[1722349205784,0.300675,66517.0,66514.0,0.03015]
[1722349205785,0.150342,66515.0,66514.0,0.03015]
[1722349205958,0.150342,66515.0,66513.0,0.081]
[1722349205959,0.150344,66514.0,66513.0,0.081]
[1722349206161,0.150344,66514.0,66508.0,0.03015]
[1722349206162,0.150355,66509.0,66508.0,0.03015]
[1722349206442,0.45452927,66509.0,66508.0,0.03015]
[1722349206650,0.48,66518.0,66512.0,0.300697]
[1722349206888,0.48,66518.0,66513.0,0.0832]
[1722349207078,0.150342,66515.0,66513.0,0.0832]
[1722349207288,0.300677,66517.0,66513.0,0.0832]
[1722349207403,0.150344,66514.0,66513.0,0.0832]
[1722349207612,0.48,66518.0,66513.0,0.0832]
[1722349207613,0.48,66518.0,66513.0,0.233546]
[1722349207814,0.15034,66516.0,66513.0,0.0832]
[1722349208212,0.00848,66519.0,66513.0,0.0832]
[1722349208419,0.150343,66515.0,66513.0,0.0832]
[1722349208630,0.300671,66518.0,66513.0,0.0902]
[1722349208855,0.00848,66519.0,66513.0,0.0902]
[1722349209110,0.150341,66516.0,66513.0,0.0832]
[1722349209566,0.150341,66516.0,66514.0,0.0607]
[1722349209789,0.300675,66517.0,66514.0,0.0607]
[1722349209790,0.150339,66517.0,66514.0,0.0607]
[1722349209994,0.150338,66517.0,66514.0,0.0607]
[1722349210200,0.150337,66517.0,66514.0,0.241193]
[1722349210497,0.150337,66517.0,66514.0,0.09085]
[1722349210726,0.00848,66519.0,66515.0,0.150341]
[1722349210871,0.00848,66519.0,66514.0,0.09085]
[1722349210872,0.150338,66517.0,66514.0,0.09085]
[1722349211073,0.309146,66519.0,66514.0,0.09685]
[1722349211396,0.451026,66515.0,66514.0,0.09085]
[1722349211533,0.00848,66519.0,66503.0,0.400734]
[1722349211534,0.150353,66510.0,66507.0,0.03015]
[1722349211736,0.00346327,66509.0,66507.0,0.03015]
[1722349211975,0.451072,66508.0,66507.0,0.03015]
[1722349212592,0.300717,66508.0,66504.0,0.03015]
[1722349212808,0.150362,66506.0,66504.0,0.03015]
[1722349213172,0.4526472,66505.0,66504.0,0.03015]
[1722349213361,0.01,66513.0,66496.0,0.0626]
[1722349213671,0.780679,66517.0,66495.0,0.03015]
[1722349213672,0.451153,66496.0,66495.0,0.03015]
[1722349214469,0.300752,66500.0,66491.0,0.03015]
[1722349214659,0.00346327,66499.0,66491.0,0.03015]
[1722349214869,0.751912,66497.0,66496.0,0.001]
[1722349215040,0.751912,66497.0,66491.0,0.03015]
[1722349215041,0.150394,66492.0,66491.0,0.03015]
[1722349215333,0.150394,66492.0,66487.0,0.150404]
[1722349215334,0.150398,66490.0,66487.0,0.150404]
[1722349215552,0.0015542,66489.0,66487.0,0.150404]
[1722349215782,0.0015542,66489.0,66488.0,0.451209]
[1722349215977,0.0015542,66489.0,66488.0,0.752015]
[1722349216153,0.1519442,66494.0,66489.0,0.300798]
[1722349216356,0.48,66502.0,66495.0,0.0639]
[1722349216558,0.00436517,66501.0,66491.0,0.0762]
[1722349216786,0.150394,66492.0,66491.0,0.0762]
[1722349216997,0.150405,66487.0,66486.0,0.07373625]
[1722349217250,0.150405,66487.0,66472.0,0.08995367]
[1722349217251,0.300815,66486.0,66482.0,0.0639]
[1722349217396,0.300805,66489.0,66482.0,0.0639]
[1722349217601,0.00478687,66488.0,66483.0,0.03015]
[1722349217810,0.00478687,66488.0,66484.0,0.180561]
[1722349218140,0.150405,66487.0,66484.0,0.03015]
[1722349218343,0.0015542,66486.0,66485.0,0.300819]
[1722349218514,0.0015542,66486.0,66485.0,0.782197]
[1722349219039,0.150394,66492.0,66485.0,0.782197]
[1722349219040,0.150399,66490.0,66486.0,0.180557]
[1722349219240,0.0015542,66489.0,66487.0,0.150405]
[1722349219474,0.0015542,66489.0,66488.0,0.561759]
[1722349219651,0.0015542,66489.0,66488.0,0.927165]
[1722349219868,0.300754,66500.0,66491.0,0.180545]
[1722349219869,0.150389,66494.0,66491.0,0.180545]
[1722349220082,0.150389,66494.0,66491.0,0.03015]
[1722349220286,0.00346327,66494.0,66491.0,0.03015]
[1722349220497,0.300806,66489.0,66485.0,0.0607]
[1722349220685,0.150402,66489.0,66485.0,0.0607]
[1722349220882,0.150404,66488.0,66486.0,0.006]
[1722349221082,0.451215,66487.0,66486.0,0.006]
[1722349221294,1.052835,66487.0,66486.0,0.006]
[1722349222415,1.052835,66487.0,66477.0,0.0619]
[1722349222416,0.150421,66480.0,66477.0,0.0619]
[1722349222586,0.300823,66485.0,66478.0,0.03015]
[1722349222808,0.00083,66489.0,66479.0,0.03015]
[1722349222809,0.150421,66481.0,66479.0,0.03015]
[1722349222956,0.15042,66481.0,66479.0,0.03015]
[1722349223156,0.150419,66481.0,66479.0,0.03015]
[1722349223561,0.11044253,66501.0,66477.0,0.0619]
[1722349223562,0.0087542,66500.0,66481.0,0.03015]
[1722349223763,0.150416,66482.0,66481.0,0.03015]
[1722349223967,0.451249,66482.0,66481.0,0.03015]
[1722349224175,0.752082,66482.0,66481.0,0.03015]
[1722349224374,0.752082,66482.0,66477.0,0.0619]
[1722349224375,0.300852,66478.0,66468.0,0.0821]
[1722349224615,0.150439,66472.0,66468.0,0.1431]
[1722349224813,0.150441,66471.0,66468.0,0.1431]
[1722349225232,0.150442,66471.0,66468.0,0.1431]
[1722349225454,0.300878,66472.0,66471.0,0.150441]
[1722349225455,0.0015542,66472.0,66471.0,0.150441]
[1722349225649,0.0015542,66472.0,66468.0,0.1431]
[1722349225650,0.0015542,66472.0,66470.0,0.150442]
[1722349225872,0.0015542,66472.0,66469.0,0.300891]
[1722349226074,0.0015542,66473.0,66470.0,0.150443]
[1722349226271,0.0015542,66473.0,66470.0,0.0098633]
[1722349226494,0.31100167,66487.0,66470.0,0.0098633]
[1722349226495,0.752207,66471.0,66470.0,0.0098633]
[1722349227023,0.752207,66471.0,66470.0,0.008]
[1722349227223,0.150449,66468.0,66465.0,0.03015]
[1722349227424,0.15391427,66467.0,66465.0,0.03015]
[1722349227746,0.0015542,66466.0,66465.0,0.03015]
[1722349228379,0.00346327,66467.0,66466.0,0.150452]
[1722349228584,0.15391027,66469.0,66465.0,0.180605]
[1722349228699,0.150452,66466.0,66465.0,0.03015]
[1722349228898,0.00346327,66467.0,66464.0,0.0656]
[1722349229309,0.00346327,66467.0,66464.0,0.216057]
[1722349229515,0.15391427,66467.0,66464.0,0.0656]
[1722349229729,0.0015542,66466.0,66464.0,0.0656]
[1722349229926,0.0015542,66466.0,66464.0,0.09575]
[1722349230132,0.0015542,66466.0,66465.0,0.752275]
[1722349230532,0.0015542,66466.0,66465.0,0.465365]
[1722349230778,0.0015542,66473.0,66469.0,0.150445]
[1722349230979,0.0015542,66473.0,66469.0,0.03015]
[1722349231181,0.0015542,66475.0,66465.0,0.300906]
[1722349231356,0.0015542,66476.0,66468.0,0.300895]
[1722349231704,0.0015542,66476.0,66464.0,0.0656]
[1722349231705,0.15044,66472.0,66467.0,0.15045]
[1722349231836,0.15044,66472.0,66470.0,0.150443]
[1722349231837,0.0015542,66471.0,66470.0,0.150443]
[1722349232487,0.1519912,66473.0,66470.0,0.150443]
[1722349232690,0.0015542,66473.0,66472.0,0.180589]
[1722349232905,0.93148504,66478.0,66477.0,0.295627]
[1722349232906,0.48,66478.0,66477.0,0.295627]
[1722349233117,0.0015542,66490.0,66486.0,0.150405]
[1722349233319,0.0015542,66488.0,66487.0,0.752025]
[1722349233518,0.3023122,66499.0,66488.0,0.599009]
[1722349233726,0.00501747,66498.0,66488.0,0.298203]
[1722349233974,0.00501747,66498.0,66488.0,0.16375979]
[1722349233975,0.15123,66489.0,66488.0,0.16375979]
[1722349234178,0.452031,66489.0,66488.0,0.19390979]
[1722349234583,0.00083,66489.0,66488.0,0.19390979]
[1722349235044,0.0023842,66489.0,66488.0,0.19390979]
[1722349235182,0.0023842,66489.0,66488.0,0.34431279]
[1722349235544,0.00083,66489.0,66488.0,0.64511879]
[1722349235660,0.00083,66489.0,66488.0,0.19390979]
[1722349235864,0.00083,66489.0,66488.0,0.34431279]
[1722349236337,0.00083,66489.0,66488.0,0.19390979]
[1722349236338,0.0023842,66489.0,66488.0,0.19390979]
[1722349236688,0.00083,66489.0,66488.0,0.20390979]
[1722349237046,0.00083,66489.0,66488.0,0.34431279]
[1722349237253,0.00083,66489.0,66488.0,0.35431279]
[1722349237437,0.00083,66489.0,66488.0,0.95592479]
[1722349237675,0.00083,66489.0,66488.0,1.25673079]
[1722349239101,0.00083,66489.0,66488.0,0.95592479]
[1722349239302,0.00083,66489.0,66488.0,0.94592479]
[1722349239703,0.00083,66489.0,66488.0,0.95992479]
[1722349239945,0.00083,66489.0,66488.0,0.94592479]
[1722349240244,0.00083,66489.0,66488.0,0.35631279]
[1722349240382,0.00083,66489.0,66488.0,0.95792479]
[1722349240582,0.00083,66489.0,66488.0,1.24673079]
[1722349241061,0.00083,66489.0,66488.0,1.26073079]
[1722349241269,0.00083,66489.0,66488.0,1.24673079]
[1722349242005,0.00083,66489.0,66488.0,1.74143679]
[1722349242233,0.00083,66489.0,66488.0,2.00206983]
[1722349242566,0.00083,66489.0,66488.0,1.99206983]
[1722349242691,0.00083,66489.0,66488.0,2.12906908]
[1722349242910,0.00083,66489.0,66488.0,2.13906908]
[1722349243087,0.00083,66489.0,66488.0,2.11706908]
[1722349243513,0.00083,66489.0,66488.0,2.13106908]
[1722349243748,0.00083,66489.0,66488.0,1.79816983]
[1722349244254,0.00083,66489.0,66488.0,1.81216983]
[1722349244405,0.00083,66489.0,66488.0,1.05992479]
[1722349244610,0.00083,66489.0,66488.0,1.04592479]
[1722349245201,0.00083,66489.0,66488.0,0.74511879]
[1722349245404,0.00083,66489.0,66488.0,0.94592479]
[1722349246155,0.00083,66489.0,66488.0,1.26073079]
[1722349246500,0.00083,66489.0,66488.0,1.24673079]
[1722349246698,0.00083,66489.0,66488.0,0.94592479]
[1722349247056,0.00083,66489.0,66488.0,0.95992479]
[1722349247639,0.00083,66489.0,66488.0,0.65911879]
[1722349248041,0.00083,66489.0,66488.0,0.95992479]
[1722349248243,0.00083,66489.0,66488.0,0.20790979]
[1722349248627,0.00083,66489.0,66488.0,0.35831279]
[1722349249524,0.00083,66489.0,66488.0,1.26073079]
[1722349249728,0.00083,66489.0,66488.0,1.41136383]
[1722349249938,0.00083,66489.0,66488.0,1.81216983]
[1722349251172,0.00083,66489.0,66488.0,1.84516983]
[1722349251379,0.00083,66489.0,66488.0,2.14597583]
[1722349251583,0.0015542,66504.0,66503.0,0.922195]
[1722349251873,0.0015542,66504.0,66503.0,0.93797934]
[1722349252301,0.1519102,66509.0,66503.0,0.48687234]
[1722349252635,0.1519102,66509.0,66504.0,0.330883]
[1722349252636,0.07534716,66507.0,66504.0,0.330883]
[1722349252772,0.0015542,66506.0,66505.0,0.150362]
[1722349252987,0.0015542,66506.0,66505.0,0.16613626]
[1722349253325,0.0015542,66506.0,66505.0,0.01577426]
[1722349253496,0.1519162,66506.0,66505.0,0.01577426]
[1722349253696,0.0015542,66506.0,66504.0,0.03015]
[1722349254021,0.150355,66509.0,66506.0,0.150362]
[1722349254229,0.0015542,66508.0,66505.0,0.01577426]
[1722349254452,0.0015542,66508.0,66504.0,0.03015]
[1722349254453,0.15036,66507.0,66506.0,0.01576922]
[1722349254895,0.451072,66508.0,66504.0,0.150366]
[1722349255005,0.1519142,66507.0,66506.0,0.01576922]
[1722349255366,0.0015542,66507.0,66505.0,0.008]
[1722349255520,0.1519142,66507.0,66506.0,0.01576922]
[1722349255879,0.0015542,66507.0,66506.0,0.01576922]
[1722349256085,0.0015542,66507.0,66506.0,0.17013122]
[1722349256287,0.150357,66509.0,66506.0,0.150362]
[1722349256491,0.00501747,66510.0,66506.0,0.150362]
[1722349256492,0.150358,66508.0,66506.0,0.01576922]
[1722349256690,0.0015542,66507.0,66506.0,0.01576922]
[1722349257238,0.0015542,66507.0,66506.0,0.02176922]
[1722349257910,0.4526342,66507.0,66506.0,0.02176922]
[1722349258045,0.15036,66507.0,66506.0,0.02176922]
[1722349258468,0.7518,66507.0,66506.0,0.02176922]
[1722349258666,0.60171304,66507.0,66506.0,0.01576922]
[1722349258867,0.15063304,66507.0,66506.0,0.005]
[1722349259074,0.60171304,66507.0,66506.0,0.005]
[1722349259297,0.30099304,66507.0,66506.0,0.01576922]
[1722349259606,0.30099304,66507.0,66494.0,0.364176]
[1722349259607,0.15037,66503.0,66499.0,0.150377]
[1722349259856,0.0015542,66502.0,66500.0,0.01579945]
[1722349259967,0.1519192,66505.0,66501.0,0.150372]
[1722349260172,0.15538247,66505.0,66501.0,0.150372]
[1722349260367,0.451107,66503.0,66502.0,0.01578937]
[1722349260567,0.451107,66503.0,66499.0,0.03015]
[1722349260568,0.0015542,66503.0,66499.0,0.03015]
[1722349260793,0.150373,66501.0,66500.0,0.01579945]
[1722349260992,0.0015542,66501.0,66500.0,0.01579945]
[1722349261190,0.0015542,66501.0,66500.0,0.16617445]
[1722349261394,0.0015542,66501.0,66500.0,0.31655045]
[1722349261615,0.0015542,66516.0,66502.0,0.30074]
[1722349261835,0.0015542,66514.0,66508.0,0.150356]
[1722349262026,0.150349,66512.0,66506.0,0.330873]
[1722349262267,0.150349,66512.0,66506.0,0.331873]
[1722349262268,0.0015542,66511.0,66506.0,0.331873]
[1722349262446,0.1519052,66511.0,66508.0,0.150356]
[1722349262648,0.0015542,66511.0,66510.0,0.150353]
[1722349262853,0.48848,66519.0,66510.0,0.143]
[1722349262854,0.0015542,66517.0,66510.0,0.143]
[1722349263053,0.0015542,66517.0,66514.0,0.150342]
[1722349263262,0.0015542,66517.0,66516.0,0.451018]
[1722349263466,0.48848,66519.0,66518.0,0.451005]
[1722349263467,0.00848,66519.0,66518.0,0.451005]
[1722349263667,0.00848,66519.0,66518.0,0.150335]
[1722349263876,0.00848,66519.0,66518.0,0.16600478]
[1722349264066,0.158812,66519.0,66518.0,0.01566978]
[1722349264220,0.4610312,66519.0,66518.0,0.01566978]
[1722349264613,0.300714,66509.0,66505.0,0.03015]
[1722349264850,0.008,66518.0,66499.0,0.14832299]
[1722349264851,0.300737,66504.0,66499.0,0.14832299]
[1722349265042,0.0015542,66503.0,66500.0,0.30075]
[1722349265171,0.0015542,66503.0,66502.0,0.451113]
[1722349265376,0.08036463,66506.0,66499.0,0.1384]
[1722349265604,0.300751,66500.0,66499.0,0.1384]
[1722349265803,0.300718,66508.0,66501.0,0.150373]
[1722349266052,0.150365,66505.0,66500.0,0.30075]
[1722349266255,0.150365,66505.0,66499.0,0.1384]
[1722349266256,0.0015542,66504.0,66502.0,0.150371]
[1722349266457,0.0015542,66504.0,66503.0,0.150369]
[1722349266566,0.15382427,66507.0,66503.0,0.150369]
[1722349266567,0.0015542,66506.0,66503.0,0.300738]
[1722349266771,0.0015542,66506.0,66505.0,0.150364]
[1722349266989,0.00501747,66510.0,66502.0,0.04315]
[1722349267195,0.150356,66509.0,66503.0,0.300736]
[1722349267430,0.0015542,66508.0,66505.0,0.150363]
[1722349267788,0.0015542,66508.0,66503.0,0.300736]
[1722349267789,0.0015542,66508.0,66507.0,0.15036]
[1722349268006,0.00848,66522.0,66511.0,0.150351]
[1722349268007,0.0015542,66512.0,66511.0,0.150351]
[1722349268215,0.0015542,66514.0,66511.0,0.15161299]
[1722349268411,0.150345,66514.0,66511.0,0.15161299]
[1722349268763,0.150347,66513.0,66511.0,0.15161299]
[1722349268967,0.0015542,66512.0,66511.0,0.75301699]
[1722349269180,0.309146,66519.0,66512.0,0.300695]
[1722349269181,0.0015542,66516.0,66512.0,0.300695]
[1722349269387,0.0015542,66516.0,66515.0,0.150342]
[1722349269579,0.158813,66519.0,66516.0,0.150339]
[1722349269580,0.0015542,66518.0,66516.0,0.150339]
[1722349269933,0.0015542,66518.0,66517.0,0.01568277]
[1722349270134,0.0015542,66518.0,66517.0,0.16601977]
[1722349270335,0.0015542,66518.0,66517.0,0.46669477]
[1722349270537,0.0015542,66518.0,66517.0,0.76736977]
[1722349270742,0.0015542,66518.0,66517.0,0.46669477]
[1722349271521,0.0015542,66518.0,66517.0,0.01568277]
[1722349271725,0.1518892,66518.0,66517.0,0.01568277]
[1722349271932,0.00848,66519.0,66514.0,0.300684]
[1722349272149,0.0015542,66518.0,66517.0,0.16601977]
[1722349272361,0.0015542,66518.0,66517.0,0.150337]
[1722349272558,0.0015542,66518.0,66517.0,0.16601977]
[1722349272760,0.0015542,66518.0,66517.0,0.01568277]
[1722349272982,0.0015542,66518.0,66517.0,0.16601977]
[1722349273126,0.0015542,66518.0,66517.0,0.01568277]
[1722349273324,0.0015542,66518.0,66517.0,0.01768277]
[1722349273629,0.0015542,66518.0,66517.0,0.16801977]
[1722349274501,0.0015542,66518.0,66517.0,0.01768277]
[1722349274673,0.751675,66518.0,66517.0,0.01768277]
[1722349274873,0.751675,66518.0,66517.0,0.002]
[1722349275078,0.90230804,66518.0,66517.0,0.002]
[1722349275279,1.20297804,66518.0,66517.0,0.002]
[1722349275456,1.55084382,66518.0,66517.0,0.002]
[1722349275660,1.55084284,66518.0,66517.0,0.002]
[1722349276093,0.150367,66504.0,66502.0,0.03015]
[1722349276307,0.1519192,66505.0,66502.0,0.03015]
[1722349276512,0.0015542,66505.0,66503.0,0.01570803]
[1722349276666,0.1519182,66505.0,66503.0,0.01570803]
[1722349276869,0.0015542,66505.0,66503.0,0.01570803]
[1722349277297,0.150363,66506.0,66503.0,0.01570803]
[1722349277298,0.1519172,66506.0,66503.0,0.01570803]
[1722349277510,0.0015542,66504.0,66503.0,0.01570803]
[1722349277709,0.0015542,66504.0,66503.0,0.150369]
[1722349277908,0.150363,66506.0,66503.0,0.16607703]
[1722349277909,0.0015542,66505.0,66503.0,0.16607703]
[1722349278108,0.0015542,66505.0,66503.0,0.01570803]
[1722349278313,0.0015542,66505.0,66503.0,0.04585803]
[1722349278539,0.0015542,66506.0,66503.0,0.16607603]
[1722349278738,0.150365,66505.0,66503.0,0.01570803]
[1722349278940,0.0015542,66504.0,66503.0,0.01570803]
[1722349279294,0.0015542,66505.0,66503.0,0.02270803]
[1722349279724,0.0015542,66506.0,66504.0,0.150365]
[1722349280122,0.150362,66506.0,66505.0,0.01571482]
[1722349280530,0.150362,66506.0,66503.0,0.008]
[1722349280690,0.1519192,66505.0,66502.0,0.03015]
[1722349280891,0.1519182,66505.0,66504.0,0.002]
[1722349281092,0.0015542,66505.0,66504.0,0.152366]
[1722349281292,0.0015542,66506.0,66504.0,0.152366]
[1722349281498,0.0015542,66506.0,66505.0,0.481243]
[1722349281689,0.00848,66519.0,66509.0,0.180505]
[1722349281690,0.150346,66513.0,66509.0,0.180505]
[1722349281888,0.0015542,66516.0,66510.0,0.1438]
[1722349282091,0.0015542,66516.0,66515.0,0.451026]
[1722349282297,0.0015542,66516.0,66515.0,0.75171]
[1722349282520,0.00848,66519.0,66518.0,0.451005]
[1722349282746,0.00848,66519.0,66518.0,0.812075]
[1722349282940,0.00848,66519.0,66518.0,0.82772306]
[1722349283182,0.00848,66519.0,66518.0,0.25653306]
[1722349283390,0.00848,66519.0,66518.0,0.55720306]
[1722349283589,0.00848,66519.0,66518.0,0.07604806]
[1722349283979,0.158812,66519.0,66518.0,0.0614]
[1722349284180,0.158812,66519.0,66511.0,0.03015]
[1722349284181,0.150343,66515.0,66512.0,0.0632]
[1722349284387,0.150343,66515.0,66510.0,0.09018986]
[1722349284388,0.07534716,66513.0,66510.0,0.0801]
[1722349284582,0.0015542,66512.0,66510.0,0.0801]
[1722349284793,0.15911304,66519.0,66510.0,0.0801]
[1722349284794,0.0015542,66515.0,66510.0,0.0801]
[1722349284926,0.158813,66519.0,66510.0,0.08310682]
[1722349284927,0.0015542,66518.0,66510.0,0.08310682]
[1722349285129,0.0015542,66518.0,66511.0,0.03015]
[1722349285332,0.0015542,66518.0,66513.0,0.03015]
[1722349286537,0.00848,66519.0,66514.0,0.10515]
[1722349286783,0.0015542,66518.0,66515.0,0.0637]
[1722349289154,0.00848,66522.0,66521.0,0.180478]
[1722349289365,0.00848,66522.0,66521.0,1.13047306]
[1722349289585,0.00848,66522.0,66521.0,1.2784145]
[1722349289800,0.00819606,66523.0,66522.0,0.634428]
[1722349289947,0.00819606,66523.0,66522.0,1.32365448]
[1722349289948,0.00654915,66523.0,66522.0,1.32365448]
[1722349290355,0.00654915,66523.0,66522.0,1.65430648]
[1722349290528,0.44444115,66538.0,66537.0,0.16995]
[1722349290927,0.150273,66546.0,66537.0,0.16995]
[1722349291108,0.22561316,66549.0,66537.0,0.320241]
[1722349291299,0.07534716,66549.0,66538.0,0.150288]
[1722349291502,0.07534716,66549.0,66539.0,0.03015]
[1722349291709,0.07534716,66549.0,66540.0,0.180435]
[1722349291926,0.150268,66548.0,66540.0,0.03015]
[1722349292083,0.150271,66547.0,66540.0,0.03015]
[1722349292288,0.150268,66548.0,66540.0,0.03015]
[1722349292447,0.15027,66547.0,66540.0,0.03015]
[1722349292647,0.300546,66546.0,66540.0,0.03015]
[1722349293537,0.150272,66546.0,66540.0,0.03115]
[1722349293683,0.150272,66546.0,66540.0,0.001]
[1722349293884,0.150274,66545.0,66538.0,0.04027906]
[1722349294110,0.300551,66545.0,66538.0,0.04027906]
[1722349294314,0.150278,66544.0,66540.0,0.03515]
[1722349294487,0.450849,66541.0,66540.0,0.03515]
[1722349294690,1.051981,66541.0,66540.0,0.03515]
[1722349294936,1.50318004,66541.0,66540.0,0.005]
[1722349295679,1.50318004,66541.0,66526.0,0.1414]
[1722349295680,0.150314,66527.0,66526.0,0.1414]
[1722349295901,0.450943,66527.0,66526.0,0.1502551]
[1722349296315,0.751572,66527.0,66526.0,0.1502551]
[1722349296512,0.751572,66527.0,66526.0,0.0884551]
[1722349296513,1.052201,66527.0,66526.0,0.0884551]
[1722349296716,1.052201,66527.0,66526.0,0.0796]
[1722349297124,0.150332,66519.0,66518.0,0.03015]
[1722349297326,0.450997,66519.0,66518.0,0.03015]
[1722349297538,0.751662,66519.0,66518.0,0.04355168]
[1722349297719,0.0609,66530.0,66517.0,0.0793]
[1722349297720,0.451005,66518.0,66517.0,0.0793]
[1722349297950,0.451005,66518.0,66492.0,0.2424]
[1722349297951,0.451045,66512.0,66511.0,0.0631]
[1722349298150,0.751742,66512.0,66511.0,0.0631]
[1722349298387,0.30067,66518.0,66509.0,0.0758]
[1722349298388,0.751765,66510.0,66509.0,0.0758]
[1722349298553,1.052471,66510.0,66509.0,0.0758]
[1722349299869,1.052471,66510.0,66509.0,0.0858]
[1722349301117,0.150353,66510.0,66509.0,0.0858]
[1722349301326,0.150353,66510.0,66509.0,0.11595]
[1722349301489,0.300645,66524.0,66509.0,0.12559017]
[1722349301693,0.150336,66518.0,66511.0,0.330852]
[1722349301935,0.300619,66530.0,66514.0,0.03015]
[1722349302142,0.150306,66531.0,66518.0,0.03015]
[1722349302334,0.44444115,66539.0,66527.0,0.150313]
[1722349302335,0.150303,66533.0,66527.0,0.150313]
[1722349302539,0.44444115,66539.0,66527.0,0.00300595]
[1722349302540,0.3006,66534.0,66527.0,0.00300595]
[1722349302780,0.150297,66535.0,66528.0,0.03968761]
[1722349302901,0.300571,66540.0,66528.0,0.03315593]
[1722349303100,0.300571,66540.0,66532.0,0.03015]
[1722349303101,0.15029,66538.0,66532.0,0.03015]
[1722349303304,0.150283,66542.0,66535.0,0.03015]
[1722349303506,0.48083,66549.0,66537.0,0.03015]
[1722349303507,0.300539,66547.0,66537.0,0.03015]
[1722349303708,0.300568,66541.0,66537.0,0.03015]
[1722349303910,0.300539,66547.0,66537.0,0.03015]
[1722349303911,0.30056,66543.0,66537.0,0.03015]
[1722349304113,0.00083,66549.0,66540.0,0.03015]
[1722349304313,0.300551,66545.0,66540.0,0.03015]
[1722349304541,0.150279,66543.0,66541.0,0.00944919]
[1722349304772,0.300544,66546.0,66541.0,0.00944919]
[1722349305074,0.150271,66547.0,66541.0,0.15973019]
[1722349305214,0.300536,66548.0,66541.0,0.00944919]
[1722349305215,0.300546,66546.0,66541.0,0.00944919]
[1722349305413,0.00083,66549.0,66542.0,0.03015]
[1722349305732,0.00083,66549.0,66543.0,0.04342056]
[1722349305733,0.150272,66546.0,66543.0,0.04342056]
[1722349306134,0.150274,66545.0,66543.0,0.04342056]
[1722349306317,0.30054,66547.0,66543.0,0.07357056]
[1722349306318,0.15027,66547.0,66543.0,0.07357056]
[1722349306524,0.150274,66545.0,66544.0,0.03439926]
[1722349306746,0.300534,66548.0,66543.0,0.03955344]
[1722349307032,0.300534,66548.0,66544.0,0.00939841]
[1722349307033,0.150274,66545.0,66544.0,0.00939841]
[1722349307239,0.150274,66545.0,66544.0,0.02838165]
[1722349308153,0.150274,66545.0,66544.0,0.00939841]
[1722349308482,0.150272,66546.0,66542.0,0.150279]
[1722349308688,0.37670916,66549.0,66543.0,0.03954399]
[1722349308689,0.07617716,66549.0,66543.0,0.03954399]
[1722349308891,0.300535,66548.0,66543.0,0.11569635]
[1722349309097,0.300539,66547.0,66543.0,0.11669635]
[1722349309350,0.07617716,66549.0,66543.0,0.11669635]
[1722349309351,0.150274,66545.0,66544.0,0.02760819]
[1722349309528,0.150272,66546.0,66544.0,0.02760819]
[1722349309728,0.300535,66548.0,66545.0,0.02275368]
[1722349309958,0.450808,66547.0,66546.0,0.02165726]
[1722349310138,0.450814,66546.0,66545.0,0.02275368]
[1722349310665,0.150276,66544.0,66541.0,0.03015]
[1722349311251,0.300547,66546.0,66543.0,0.150278]
[1722349311252,0.150272,66546.0,66543.0,0.150278]
[1722349311419,0.150272,66546.0,66540.0,0.01010058]
[1722349311420,0.300535,66548.0,66544.0,0.07925916]
[1722349311731,0.00083,66549.0,66545.0,0.16965]